[Event "Championnat du monde jeunes U12"]
[Date "2024.11.16"]
[White "Bocquenet-Drouode, Hugo"]
[Black "Golis, Wiktor"]
[WhiteElo "2002"]
[BlackElo "2343"]
[Round "2.1"]
[Result "0-1"]
[TimeControl "5400+30"]

1. e4 {[%clk 1:30:57]} 1... e5 {[%clk 1:28:46]} 2. Nc3 {[%clk 1:31:20]} 2... Nc6
{[%clk 1:26:40]} 3. g3 {[%clk 1:31:44]} 3... Bc5 {[%clk 1:18:42]} 4. Bg2 {[%clk
1:32:01]} 4... Nge7 {[%clk 1:17:35]} 5. d3 {[%clk 1:27:45]} 5... O-O {[%clk
1:11:50]} 6. Na4 {[%clk 1:17:55]} 6... Bb4+ {[%clk 1:06:23]} 7. c3 {[%clk
1:18:08]} 7... Bd6 {[%clk 1:05:47]} 8. c4 {[%clk 1:17:39]} 8... Bb4+ {[%clk
1:05:20]} 9. Bd2 {[%clk 1:17:52]} 9... Bxd2+ {[%clk 1:03:07]} 10. Qxd2 {[%clk
1:18:12]} 10... f5 {[%clk 1:01:55]} 11. Ne2 {[%clk 1:15:02]} 11... d6 {[%clk
0:58:24]} 12. Nac3 {[%clk 1:13:10]} 12... Be6 {[%clk 0:51:38]} 13. Nd5 {[%clk
1:10:24]} 13... Qd7 {[%clk 0:51:44]} 14. f4 {[%clk 0:58:04]} 14... fxe4 {[%clk
0:50:28]} 15. dxe4 {[%clk 0:55:27]} 15... Bg4 {[%clk 0:50:18]} 16. Nec3 {[%clk
0:44:40]} 16... Nxd5 {[%clk 0:23:20]} 17. cxd5 {[%clk 0:43:03]} 17... Nd4 {[%clk
0:21:53]} 18. h3 {[%clk 0:41:22]} 18... Bf3 {[%clk 0:19:26]} 19. O-O {[%clk
0:40:57]} 19... Bxg2 {[%clk 0:19:31]} 20. Kxg2 {[%clk 0:41:07]} 20... c5 {[%clk
0:19:18]} 21. Ne2 {[%clk 0:32:52]} 21... Nxe2 {[%clk 0:13:10]} 22. Qxe2 {[%clk
0:32:59]} 22... exf4 {[%clk 0:13:36]} 23. gxf4 {[%clk 0:33:09]} 23... Rae8
{[%clk 0:13:59]} 24. Rae1 {[%clk 0:32:57]} 24... Re7 {[%clk 0:14:08]} 25. Rf3
{[%clk 0:30:43]} 25... Rfe8 {[%clk 0:13:05]} 26. Re3 {[%clk 0:31:00]} 26... a6
{[%clk 0:12:17]} 27. Qd3 {[%clk 0:28:10]} 27... Qa4 {[%clk 0:07:16]} 28. a3
{[%clk 0:27:58]} 28... Qd4 {[%clk 0:06:01]} 29. Qxd4 {[%clk 0:25:46]} 29... cxd4
{[%clk 0:06:27]} 30. Rd3 {[%clk 0:26:12]} 30... Rxe4 {[%clk 0:06:50]} 31. Rxe4
{[%clk 0:26:37]} 31... Rxe4 {[%clk 0:07:15]} 32. Kf3 {[%clk 0:27:03]} 32... Re3+
{[%clk 0:04:23]} 33. Rxe3 {[%clk 0:27:28]} 33... dxe3 {[%clk 0:04:45]} 34. Kxe3
{[%clk 0:27:49]} 34... g6 {[%clk 0:04:08]} 35. Kf3 {[%clk 0:25:40]} 35... Kf7
{[%clk 0:03:51]} 36. Kg4 {[%clk 0:25:59]} 36... Kf6 {[%clk 0:04:17]} 37. h4
{[%clk 0:25:22]} 37... h6 {[%clk 0:03:58]} 38. b4 {[%clk 0:23:38]} 38... b5
{[%clk 0:04:00]} 39. Kg3 {[%clk 0:23:57]} 39... Kf5 {[%clk 0:04:21]} 40. Kf3
{[%clk 0:24:23]} 40... h5 {[%clk 0:04:39]} 41. Ke3 {[%clk 0:19:54]} 41... Kg4
{[%clk 0:05:02]} 42. Ke4 {[%clk 0:20:19]} 42... Kxh4 {[%clk 0:05:25]} 43. f5
{[%clk 0:20:33]} 43... Kg5 {[%clk 0:05:51]} 44. fxg6 {[%clk 0:20:49]} 44... Kxg6
{[%clk 0:06:16]} 45. Kf4 {[%clk 0:21:14]} 45... Kf6 {[%clk 0:06:40]} 46. Ke4
{[%clk 0:21:36]} 46... h4 {[%clk 0:06:52]} 47. Kf4 {[%clk 0:22:03]} 47... h3
{[%clk 0:07:17]} 48. Kg3 {[%clk 0:22:30]} 48... Ke5 {[%clk 0:07:44]} 49. Kxh3
{[%clk 0:22:57]} 49... Kxd5 {[%clk 0:08:10]} 50. Kg3 {[%clk 0:23:22]} 50... Kc4
{[%clk 0:08:37]} 51. Kf3 {[%clk 0:23:49]} 51... Kb3 {[%clk 0:09:02]} 52. Ke4
{[%clk 0:24:15]} 52... Kxa3 {[%clk 0:09:27]} 53. Kd4 0-1

[Variant "Standard"]
[Site "Europe Echecs"]

[Event "Championnat du monde jeunes U12"]
[Date "2024.11.16"]
[White "Mamikonyan, Artem T"]
[Black "Nicot, Valentin"]
[WhiteElo "1918"]
[BlackElo "2078"]
[Round "2.18"]
[Result "1-0"]
[TimeControl "5400+30"]

1. e4 {[%clk 1:30:58]} 1... g6 {[%clk 1:30:41]} 2. d4 {[%clk 1:31:17]} 2... Bg7
{[%clk 1:30:48]} 3. c3 {[%clk 1:28:36]} 3... c6 {[%clk 1:29:38]} 4. Bd3 {[%clk
1:27:35]} 4... d5 {[%clk 1:29:37]} 5. e5 {[%clk 1:27:15]} 5... Nh6 {[%clk
1:22:34]} 6. Bf4 {[%clk 1:11:12]} 6... f6 {[%clk 1:13:46]} 7. exf6 {[%clk
0:56:38]} 7... exf6 {[%clk 1:14:07]} 8. h4 {[%clk 0:56:53]} 8... O-O {[%clk
0:58:47]} 9. Bxh6 {[%clk 0:55:53]} 9... Bxh6 {[%clk 0:59:08]} 10. h5 {[%clk
0:56:20]} 10... g5 {[%clk 0:58:27]} 11. Qc2 {[%clk 0:55:13]} 11... Qe7+ {[%clk
0:56:52]} 12. Ne2 {[%clk 0:55:23]} 12... Re8 {[%clk 0:50:35]} 13. Nd2 {[%clk
0:50:56]} 13... Bf5 {[%clk 0:43:10]} 14. Nf1 {[%clk 0:51:17]} 14... Bxd3 {[%clk
0:39:54]} 15. Qxd3 {[%clk 0:51:31]} 15... Qe4 {[%clk 0:37:29]} 16. Qxe4 {[%clk
0:51:57]} 16... Rxe4 {[%clk 0:37:53]} 17. Ng3 {[%clk 0:52:21]} 17... Re6 {[%clk
0:37:58]} 18. Nf5 {[%clk 0:52:17]} 18... Bf8 {[%clk 0:38:09]} 19. Kd2 {[%clk
0:47:04]} 19... Nd7 {[%clk 0:36:23]} 20. Rae1 {[%clk 0:46:18]} 20... Rae8 {[%clk
0:33:20]} 21. Nc1 {[%clk 0:45:36]} 21... Nb6 {[%clk 0:31:26]} 22. b3 {[%clk
0:45:55]} 22... Nc8 {[%clk 0:29:30]} 23. Rxe6 {[%clk 0:35:26]} 23... Rxe6 {[%clk
0:29:58]} 24. Nd3 {[%clk 0:35:49]} 24... Nd6 {[%clk 0:28:32]} 25. Nc5 {[%clk
0:34:14]} 25... Ne4+ {[%clk 0:28:49]} 26. Nxe4 {[%clk 0:34:37]} 26... Rxe4
{[%clk 0:29:13]} 27. f3 {[%clk 0:35:01]} 27... Re6 {[%clk 0:28:19]} 28. Re1
{[%clk 0:35:00]} 28... Kf7 {[%clk 0:25:59]} 29. g4 {[%clk 0:35:25]} 29... Rxe1
{[%clk 0:25:07]} 30. Kxe1 {[%clk 0:35:51]} 30... a5 {[%clk 0:23:54]} 31. Ke2
{[%clk 0:36:02]} 31... Ke6 {[%clk 0:23:08]} 32. a4 b6 {[%clk 0:21:40]} 33. Kd3
{[%clk 0:21:31]} 33... Bd6 {[%clk 0:19:55]} 34. Ne3 {[%clk 0:21:37]} 34... Bf4
{[%clk 0:19:28]} 35. Nc2 {[%clk 0:21:53]} 35... Bd6 {[%clk 0:19:23]} 36. b4
{[%clk 0:21:48]} 36... Be7 {[%clk 0:18:34]} 37. Kd2 {[%clk 0:15:44]} 37... Bd6
{[%clk 0:18:29]} 38. Kc1 {[%clk 0:15:21]} 38... Bc7 {[%clk 0:16:00]} 39. Kb2
{[%clk 0:15:29]} 39... Bd6 {[%clk 0:15:48]} 40. Kb3 {[%clk 0:14:36]} 40... Be7
{[%clk 0:14:12]} 41. b5 {[%clk 0:14:21]} 41... c5 {[%clk 0:13:50]} 42. c4 {[%clk
0:13:35]} 42... dxc4+ {[%clk 0:13:15]} 43. Kxc4 {[%clk 0:13:56]} 43... cxd4
{[%clk 0:13:31]} 44. Nxd4+ {[%clk 0:14:07]} 44... Kd6 {[%clk 0:12:56]} 45. Nf5+
{[%clk 0:14:31]} 45... Ke6 {[%clk 0:13:21]} 46. Nxe7 {[%clk 0:14:52]} 46... Kxe7
{[%clk 0:13:48]} 47. Kd5 {[%clk 0:15:14]} 47... Kd7 {[%clk 0:14:06]} 48. h6
{[%clk 0:15:39]} 1-0

[Variant "Standard"]
[Site "Europe Echecs"]

[Event "Championnat du monde jeunes U12"]
[Date "2024.11.16"]
[White "Obidjonov, Oriyat"]
[Black "Bundan, Edward"]
[WhiteElo "2074"]
[BlackElo "1905"]
[Round "2.20"]
[Result "1-0"]
[TimeControl "5400+30"]

1. e4 {[%clk 1:30:57]} 1... c5 {[%clk 1:30:50]} 2. Nf3 {[%clk 1:31:21]} 2... Nc6
{[%clk 1:31:09]} 3. c4 {[%clk 1:31:34]} 3... e5 {[%clk 1:28:58]} 4. Nc3 {[%clk
1:31:43]} 4... g6 {[%clk 1:26:09]} 5. d3 {[%clk 1:31:10]} 5... Bg7 {[%clk
1:24:54]} 6. Be2 {[%clk 1:30:08]} 6... Nge7 {[%clk 1:24:28]} 7. O-O {[%clk
1:29:53]} 7... O-O {[%clk 1:24:27]} 8. a3 {[%clk 1:29:56]} 8... d6 {[%clk
1:23:23]} 9. h3 {[%clk 1:29:50]} 9... f5 {[%clk 1:19:31]} 10. b4 {[%clk
1:18:18]} 10... f4 {[%clk 1:06:55]} 11. b5 {[%clk 1:18:43]} 11... Nd4 {[%clk
1:06:01]} 12. Nxd4 {[%clk 1:14:14]} 12... cxd4 {[%clk 1:03:26]} 13. Nb1 {[%clk
1:11:04]} 13... g5 {[%clk 1:01:28]} 14. Bg4 {[%clk 1:10:45]} 14... Ng6 {[%clk
0:57:03]} 15. Bxc8 {[%clk 1:09:36]} 15... Qxc8 {[%clk 0:56:06]} 16. Qh5 {[%clk
1:09:34]} 16... Qd8 {[%clk 0:47:15]} 17. a4 {[%clk 1:04:53]} 17... Qf6 {[%clk
0:46:07]} 18. Nd2 {[%clk 1:04:13]} 18... Nh4 {[%clk 0:37:41]} 19. Ba3 {[%clk
1:02:43]} 19... Rac8 {[%clk 0:31:32]} 20. Rac1 {[%clk 1:00:59]} 20... b6 {[%clk
0:31:14]} 21. a5 {[%clk 0:57:20]} 21... h6 {[%clk 0:30:34]} 22. axb6 {[%clk
0:56:41]} 22... axb6 {[%clk 0:30:52]} 23. Bb4 {[%clk 0:57:06]} 23... Qe6 {[%clk
0:29:20]} 24. Qg4 {[%clk 0:55:41]} 24... Qg6 {[%clk 0:29:00]} 25. g3 {[%clk
0:54:47]} 25... h5 {[%clk 0:29:03]} 26. Qd1 {[%clk 0:33:58]} 26... g4 {[%clk
0:24:26]} 27. hxg4 {[%clk 0:34:23]} 27... f3 {[%clk 0:24:12]} 28. Kh2 {[%clk
0:34:00]} 28... Qxg4 {[%clk 0:23:28]} 29. Bxd6 {[%clk 0:34:20]} 29... Rf7 {[%clk
0:22:18]} 30. c5 {[%clk 0:34:12]} 30... Ng6 {[%clk 0:20:40]} 31. Rg1 {[%clk
0:13:19]} 31... Nf4 {[%clk 0:19:32]} 32. Qf1 {[%clk 0:13:45]} 32... Ne2 {[%clk
0:18:43]} 33. Qh3 {[%clk 0:14:09]} 33... Qxh3+ {[%clk 0:18:55]} 34. Kxh3 {[%clk
0:14:36]} 34... Nxg1+ {[%clk 0:19:17]} 35. Rxg1 {[%clk 0:15:00]} 35... bxc5
{[%clk 0:19:16]} 36. b6 {[%clk 0:15:04]} 36... Rb7 {[%clk 0:18:10]} 37. Nc4
{[%clk 0:15:26]} 37... Bf6 {[%clk 0:16:47]} 38. Rb1 {[%clk 0:09:49]} 38... Bd8
{[%clk 0:13:37]} 39. Rb5 {[%clk 0:08:31]} 39... Kf7 {[%clk 0:08:19]} 40. Bxc5
{[%clk 0:05:55]} 40... Ke6 {[%clk 0:06:43]} 41. Na5 {[%clk 0:06:00]} 41... Rxc5
{[%clk 0:05:48]} 42. Rxc5 {[%clk 0:06:25]} 42... Rxb6 {[%clk 0:05:34]} 43. Nc4
{[%clk 0:06:44]} 43... Rb3 {[%clk 0:05:05]} 44. Rxe5+ {[%clk 0:07:11]} 44... Kd7
{[%clk 0:03:53]} 45. Rxh5 {[%clk 0:06:37]} 45... Bf6 {[%clk 0:03:11]} 46. Rf5
{[%clk 0:06:55]} 46... Ke6 {[%clk 0:03:22]} 47. Rxf3 {[%clk 0:07:18]} 47... Rb1
{[%clk 0:03:07]} 48. e5 {[%clk 0:06:11]} 48... Bxe5 {[%clk 0:02:54]} 49. Nxe5
{[%clk 0:06:36]} 49... Kxe5 {[%clk 0:03:14]} 50. Kh4 {[%clk 0:06:58]} 50... Rh1+
{[%clk 0:02:29]} 51. Kg5 {[%clk 0:07:19]} 51... Rh8 {[%clk 0:02:44]} 52. g4
{[%clk 0:07:37]} 52... Rg8+ {[%clk 0:03:06]} 53. Kh4 {[%clk 0:08:02]} 53... Rh8+
{[%clk 0:03:32]} 54. Kg3 {[%clk 0:08:20]} 54... Rg8 {[%clk 0:03:40]} 55. Rf5+
{[%clk 0:08:29]} 55... Ke6 56. Rf4 {[%clk 0:08:26]} 56... Ke5 {[%clk 0:04:17]}
57. Rf5+ {[%clk 0:08:17]} 57... Ke6 {[%clk 0:04:39]} 58. Kf4 {[%clk 0:08:43]}
58... Rg7 {[%clk 0:04:54]} 59. f3 {[%clk 0:09:04]} 59... Rg8 {[%clk 0:04:45]}
60. Ke4 {[%clk 0:09:27]} 1-0

[Variant "Standard"]
[Site "Europe Echecs"]

[Event "Championnat du monde jeunes U12"]
[Date "2024.11.16"]
[White "Kleschevnikov, Arseny"]
[Black "Tatvidze, Davit"]
[WhiteElo "1893"]
[BlackElo "2024"]
[Round "2.26"]
[Result "1-0"]
[TimeControl "5400+30"]

1. d4 {[%clk 1:30:57]} 1... Nf6 {[%clk 1:30:56]} 2. c4 {[%clk 1:31:23]} 2... e6
{[%clk 1:31:24]} 3. Nc3 {[%clk 1:31:33]} 3... Bb4 {[%clk 1:31:49]} 4. f3 {[%clk
1:31:53]} 4... c5 {[%clk 1:31:58]} 5. d5 {[%clk 1:32:14]} 5... b5 {[%clk
1:31:53]} 6. e4 {[%clk 1:32:23]} 6... d6 {[%clk 1:32:19]} 7. Ne2 {[%clk
1:31:28]} 7... bxc4 {[%clk 1:31:49]} 8. Nf4 {[%clk 1:30:40]} 8... e5 {[%clk
1:32:15]} 9. Ne2 {[%clk 1:31:04]} 9... Nbd7 {[%clk 1:27:25]} 10. Ng3 {[%clk
1:30:42]} 10... Nb6 {[%clk 1:26:49]} 11. Be2 {[%clk 1:30:07]} 11... Bxc3+ {[%clk
1:22:57]} 12. bxc3 {[%clk 1:30:33]} 12... Bd7 {[%clk 1:23:24]} 13. O-O {[%clk
1:18:17]} 13... h5 {[%clk 1:13:20]} 14. Bg5 {[%clk 0:47:48]} 14... h4 {[%clk
1:13:10]} 15. Nh1 {[%clk 0:45:17]} 15... Rh5 {[%clk 1:06:39]} 16. Qc1 {[%clk
0:39:09]} 16... Qe7 {[%clk 1:06:28]} 17. Nf2 {[%clk 0:37:13]} 17... Rxg5 {[%clk
0:57:47]} 18. Qxg5 {[%clk 0:37:37]} 18... Nfxd5 {[%clk 0:58:10]} 19. Qxe7+
{[%clk 0:36:49]} 19... Nxe7 {[%clk 0:58:36]} 20. Nd1 {[%clk 0:28:28]} 20... d5
{[%clk 0:51:55]} 21. Ne3 {[%clk 0:26:13]} 21... Be6 {[%clk 0:52:11]} 22. exd5
{[%clk 0:25:46]} 22... Nexd5 {[%clk 0:51:40]} 23. Nxd5 {[%clk 0:25:46]} 23...
Bxd5 {[%clk 0:52:05]} 24. a4 {[%clk 0:23:45]} 24... Ke7 {[%clk 0:48:36]} 25. a5
{[%clk 0:22:44]} 25... Nd7 {[%clk 0:48:41]} 26. Ra4 {[%clk 0:19:03]} 26... Bc6
{[%clk 0:47:14]} 27. Ra2 {[%clk 0:16:13]} 27... Bd5 {[%clk 0:46:30]} 28. Rd1
{[%clk 0:12:12]} 28... Nf6 {[%clk 0:46:02]} 29. h3 {[%clk 0:11:36]} 29... Rb8
{[%clk 0:26:10]} 30. Ra4 {[%clk 0:10:08]} 30... Rb3 {[%clk 0:21:40]} 31. Bxc4
{[%clk 0:09:38]} 31... Bxc4 {[%clk 0:22:05]} 32. Rxc4 {[%clk 0:10:05]} 32... Nd7
{[%clk 0:22:31]} 33. Rxh4 {[%clk 0:06:13]} 33... Rxc3 {[%clk 0:16:08]} 34. Ra4
{[%clk 0:05:56]} 34... Ke6 {[%clk 0:08:28]} 35. Rb1 {[%clk 0:05:39]} 35... c4
{[%clk 0:05:43]} 36. a6 {[%clk 0:03:28]} 36... Kd6 {[%clk 0:02:34]} 37. Rab4
{[%clk 0:01:21]} 37... Nb6 {[%clk 0:01:35]} 38. Rxb6+ {[%clk 0:01:28]} 38...
axb6 {[%clk 0:02:01]} 39. Ra1 {[%clk 0:01:54]} 39... Kd5 1-0

[Variant "Standard"]
[Site "Europe Echecs"]

[Event "Championnat du monde jeunes U12"]
[Date "2024.11.16"]
[White "Lee, Tsuen Jin Aiesec"]
[Black "Macia Tell, Dario"]
[WhiteElo "1806"]
[BlackElo "1520"]
[Round "2.50"]
[Result "1-0"]
[TimeControl "5400+30"]

1. e4 {[%clk 1:30:58]} 1... c5 {[%clk 1:30:56]} 2. Nf3 {[%clk 1:31:23]} 2... d6
{[%clk 1:31:21]} 3. Bb5+ {[%clk 1:31:50]} 3... Nd7 {[%clk 1:31:36]} 4. c4 {[%clk
1:32:16]} 4... a6 {[%clk 1:31:52]} 5. Ba4 {[%clk 1:32:43]} 5... Nf6 {[%clk
1:32:15]} 6. Nc3 {[%clk 1:33:10]} 6... g6 {[%clk 1:32:34]} 7. d3 {[%clk
1:33:19]} 7... Bg7 {[%clk 1:32:57]} 8. h3 {[%clk 1:33:45]} 8... O-O {[%clk
1:33:14]} 9. Be3 {[%clk 1:34:11]} 9... e6 {[%clk 1:31:34]} 10. O-O {[%clk
1:33:04]} 10... Nb6 {[%clk 1:31:17]} 11. Bb3 {[%clk 1:33:28]} 11... e5 {[%clk
1:29:58]} 12. a3 {[%clk 1:32:31]} 12... Be6 {[%clk 1:29:19]} 13. Qd2 {[%clk
1:30:48]} 13... Qd7 {[%clk 1:29:25]} 14. Bc2 {[%clk 1:30:34]} 14... Qc7 {[%clk
1:27:14]} 15. b4 {[%clk 1:30:36]} 15... Nbd7 {[%clk 1:27:36]} 16. Ng5 {[%clk
1:30:27]} 16... a5 {[%clk 1:26:55]} 17. Nb5 {[%clk 1:30:06]} 17... Qb6 {[%clk
1:22:59]} 18. bxa5 {[%clk 1:29:59]} 18... Rxa5 {[%clk 1:23:01]} 19. Nxd6 {[%clk
1:29:14]} 19... Rb8 {[%clk 1:20:41]} 20. Rfb1 {[%clk 1:25:01]} 20... Qc7 {[%clk
1:21:00]} 21. Nb5 {[%clk 1:21:55]} 21... Qd8 {[%clk 1:20:12]} 22. f4 {[%clk
1:19:51]} 22... Ra6 {[%clk 1:13:51]} 23. Rf1 {[%clk 1:19:34]} 23... exf4 {[%clk
1:13:59]} 24. Bxf4 {[%clk 1:19:51]} 24... Rc8 {[%clk 1:13:34]} 25. Rab1 {[%clk
1:19:26]} 25... Nf8 {[%clk 1:12:23]} 26. Qf2 {[%clk 1:17:43]} 26... h6 {[%clk
1:12:03]} 27. Nxe6 {[%clk 1:16:58]} 27... Nxe6 {[%clk 1:12:19]} 28. Be5 {[%clk
1:15:48]} 28... Ng5 {[%clk 1:10:38]} 29. Bc3 Qe7 {[%clk 1:09:07]} 30. e5 {[%clk
1:13:38]} 30... Nd7 {[%clk 1:08:11]} 31. h4 {[%clk 1:13:49]} 31... Nh7 {[%clk
1:07:54]} 32. Nd6 {[%clk 1:11:12]} 32... Rf8 {[%clk 1:03:44]} 33. Rxb7 {[%clk
1:09:23]} 33... Bxe5 {[%clk 1:03:54]} 34. Bxe5 {[%clk 1:09:20]} 34... Qxe5
{[%clk 1:04:12]} 35. Rxd7 {[%clk 1:01:51]} 35... Rxd6 {[%clk 1:04:33]} 36. Rxf7
{[%clk 1:02:05]} 36... Rf6 {[%clk 1:04:57]} 37. Rxf8+ {[%clk 1:00:44]} 37...
Rxf8 {[%clk 1:05:13]} 38. Qe1 {[%clk 0:59:42]} 38... Rxf1+ {[%clk 1:02:32]} 39.
Kxf1 {[%clk 0:59:10]} 39... Qb2 {[%clk 1:00:21]} 40. Qe6+ {[%clk 0:58:50]} 40...
Kg7 {[%clk 1:00:17]} 41. Qe7+ {[%clk 0:58:52]} 41... Kg8 {[%clk 1:00:38]} 42.
Qe8+ {[%clk 0:51:44]} 42... Kg7 {[%clk 1:00:58]} 43. Qa4 {[%clk 0:52:10]} 43...
Qc1+ {[%clk 1:01:19]} 44. Ke2 {[%clk 0:52:27]} 44... Qf4 {[%clk 1:01:21]} 45.
Qd7+ {[%clk 0:52:31]} 45... Kg8 {[%clk 1:01:42]} 46. Qc8+ {[%clk 0:51:43]} 46...
Kg7 {[%clk 1:01:56]} 47. Qb7+ {[%clk 0:50:54]} 47... Kg8 {[%clk 1:02:15]} 48.
Qe4 {[%clk 0:50:50]} 48... Qc1 {[%clk 1:02:26]} 49. Qxg6+ {[%clk 0:50:01]} 49...
Kh8 {[%clk 1:02:51]} 50. d4 {[%clk 0:49:32]} 50... Nf8 {[%clk 1:03:16]} 51. Qf5
{[%clk 0:49:57]} 51... Kg8 {[%clk 1:03:27]} 52. d5 {[%clk 0:49:57]} 52... Qxa3
{[%clk 1:03:35]} 53. d6 {[%clk 0:50:20]} 53... Qa8 {[%clk 1:03:40]} 54. Be4
{[%clk 0:49:28]} 54... Qa2+ {[%clk 1:04:03]} 55. Kf3 {[%clk 0:48:29]} 55... Qxc4
{[%clk 1:03:58]} 56. Bd5+ {[%clk 0:48:53]} 1-0

[Variant "Standard"]
[Site "Europe Echecs"]

[Event "Championnat du monde jeunes U12"]
[Date "2024.11.17"]
[White "Luger, Sam"]
[Black "Sobirov, Afruzbek"]
[WhiteElo "2094"]
[BlackElo "1928"]
[Round "3.7"]
[Result "1/2-1/2"]
[TimeControl "5400+30"]

1. d4 {[%clk 1:30:42]} 1... Nf6 {[%clk 1:30:50]} 2. c4 {[%clk 1:31:06]} 2... e6
{[%clk 1:31:15]} 3. g3 {[%clk 1:31:32]} 3... d5 {[%clk 1:31:41]} 4. Bg2 {[%clk
1:31:57]} 4... Bb4+ {[%clk 1:32:02]} 5. Nd2 {[%clk 1:32:21]} 5... O-O {[%clk
1:32:18]} 6. Nf3 {[%clk 1:32:36]} 6... b6 {[%clk 1:31:35]} 7. O-O {[%clk
1:32:43]} 7... Bb7 {[%clk 1:31:24]} 8. Ne5 {[%clk 1:30:24]} 8... Nbd7 {[%clk
1:29:53]} 9. cxd5 {[%clk 1:26:50]} 9... exd5 {[%clk 1:17:01]} 10. Qa4 {[%clk
1:25:15]} 10... Bd6 {[%clk 1:16:40]} 11. Nxd7 {[%clk 1:23:07]} 11... Qxd7 {[%clk
1:12:42]} 12. Qxd7 {[%clk 1:22:52]} 12... Nxd7 {[%clk 1:13:06]} 13. Nc4 {[%clk
1:22:51]} 13... Be7 {[%clk 1:08:43]} 14. Bf4 {[%clk 1:21:30]} 14... Bf6 {[%clk
1:04:20]} 15. Rfd1 {[%clk 0:44:39]} 15... Ba6 {[%clk 0:59:11]} 16. Bxd5 {[%clk
0:16:49]} 16... c6 {[%clk 0:57:43]} 17. Bxc6 {[%clk 0:16:59]} 17... Bxc4 {[%clk
0:58:07]} 18. Bxd7 {[%clk 0:17:25]} 18... Rad8 {[%clk 0:58:28]} 19. Bg4 {[%clk
0:16:28]} 19... Rxd4 {[%clk 0:58:48]} 20. b3 {[%clk 0:15:10]} 20... Rxf4 {[%clk
0:58:51]} 21. gxf4 {[%clk 0:15:33]} 21... Bxa1 {[%clk 0:59:10]} 22. bxc4 {[%clk
0:09:21]} 22... Bc3 {[%clk 0:56:42]} 23. Rd7 {[%clk 0:08:56]} 23... a5 {[%clk
0:57:02]} 24. Bf3 {[%clk 0:05:27]} 24... f5 {[%clk 0:55:31]} 25. Bd5+ {[%clk
0:05:27]} 25... Kh8 {[%clk 0:55:53]} 26. e3 {[%clk 0:05:29]} 26... Bb4 {[%clk
0:56:01]} 27. Kf1 {[%clk 0:05:50]} 27... Bc5 {[%clk 0:56:21]} 28. Ke2 {[%clk
0:06:16]} 28... g6 {[%clk 0:55:20]} 29. Rb7 {[%clk 0:05:38]} 29... a4 {[%clk
0:54:51]} 30. Kd3 {[%clk 0:04:43]} 30... a3 {[%clk 0:55:13]} 31. Kc3 {[%clk
0:04:50]} 31... Re8 {[%clk 0:52:14]} 32. Kb3 {[%clk 0:04:45]} 32... Re7 {[%clk
0:52:09]} 33. Rb8+ {[%clk 0:04:01]} 33... Kg7 {[%clk 0:52:32]} 34. Kc2 {[%clk
0:03:01]} 34... Ra7 {[%clk 0:52:35]} 35. Bc6 {[%clk 0:02:37]} 35... Rc7 {[%clk
0:48:13]} 36. Bb5 {[%clk 0:02:07]} 36... Re7 {[%clk 0:45:32]} 37. Rd8 {[%clk
0:02:33]} 37... Re6 {[%clk 0:43:09]} 38. Rd5 {[%clk 0:02:52]} 38... Kf6 {[%clk
0:38:40]} 39. Kd3 {[%clk 0:01:59]} 39... Bb4 {[%clk 0:37:45]} 40. Ke2 {[%clk
0:01:35]} 40... Bc5 {[%clk 0:38:08]} 41. Rd7 {[%clk 0:01:53]} 41... Re7 {[%clk
0:37:40]} 42. Rd8 {[%clk 0:02:10]} 42... Re6 {[%clk 0:37:54]} 43. Rc8 {[%clk
0:01:59]} 43... Re7 {[%clk 0:32:00]} 44. Bc6 {[%clk 0:01:51]} 44... Ra7 {[%clk
0:32:20]} 45. Kd3 {[%clk 0:01:58]} 45... Bd6 {[%clk 0:31:42]} 46. Kc3 {[%clk
0:02:00]} 46... Rc7 {[%clk 0:31:36]} 47. Rxc7 {[%clk 0:02:16]} 47... Bxc7 {[%clk
0:32:02]} 48. Kd4 {[%clk 0:02:31]} 48... Bd6 {[%clk 0:32:22]} 49. Bd5 {[%clk
0:02:03]} 49... h6 {[%clk 0:30:31]} 50. Kd3 {[%clk 0:01:23]} 50... g5 {[%clk
0:30:26]} 51. fxg5+ {[%clk 0:01:36]} 51... hxg5 {[%clk 0:30:49]} 52. h3 {[%clk
0:01:43]} 52... Ke5 {[%clk 0:31:03]} 53. Bc6 {[%clk 0:01:37]} 53... Bc5 {[%clk
0:30:56]} 54. Bd7 {[%clk 0:00:56]} 54... f4 {[%clk 0:30:10]} 55. Ke2 {[%clk
0:01:00]} 55... fxe3 {[%clk 0:30:27]} 56. fxe3 {[%clk 0:01:27]} 56... Be7 {[%clk
0:30:31]} 57. Kf3 {[%clk 0:01:37]} 57... Kd6 {[%clk 0:30:41]} 58. Ba4 {[%clk
0:01:57]} 58... Ke5 {[%clk 0:30:53]} 59. Bc2 {[%clk 0:02:16]} 59... Bd8 {[%clk
0:31:15]} 60. Kg4 {[%clk 0:02:36]} 60... Be7 {[%clk 0:31:22]} 61. Kh5 {[%clk
0:02:37]} 61... Kf6 {[%clk 0:31:40]} 62. Kg4 {[%clk 0:02:50]} 62... Ke5 {[%clk
0:32:03]} 63. Kf3 {[%clk 0:02:55]} 63... Bd8 {[%clk 0:32:23]} 64. Ke2 {[%clk
0:03:18]} 64... Be7 {[%clk 0:32:45]} 65. Kd3 {[%clk 0:03:34]} 65... Bb4 {[%clk
0:33:08]} 66. Bd1 {[%clk 0:04:01]} 66... Bc5 {[%clk 0:33:32]} 67. Bf3 {[%clk
0:04:25]} 67... Bb4 {[%clk 0:33:56]} 68. Bd5 {[%clk 0:04:46]} 68... Bc5 {[%clk
0:34:19]} 69. Bg8 {[%clk 0:05:12]} 69... Bb4 {[%clk 0:34:35]} 70. Ke2 {[%clk
0:05:25]} 70... Bc5 {[%clk 0:34:51]} 71. Kf3 {[%clk 0:05:35]} 71... Be7 {[%clk
0:35:12]} 72. Bh7 {[%clk 0:05:59]} 72... Bc5 {[%clk 0:35:33]} 73. Bd3 {[%clk
0:06:18]} 73... Be7 {[%clk 0:35:57]} 74. Kg4 {[%clk 0:06:20]} 74... Bd8 {[%clk
0:36:17]} 75. Kh5 {[%clk 0:06:36]} 75... Kf6 {[%clk 0:36:40]} 76. Bc2 {[%clk
0:06:40]} 76... Be7 {[%clk 0:37:02]} 77. Kg4 {[%clk 0:07:04]} 77... Ke5 {[%clk
0:37:25]} 78. Bg6 {[%clk 0:07:18]} 78... Bd8 {[%clk 0:37:48]} 79. Kh5 {[%clk
0:07:20]} 79... Be7 {[%clk 0:38:02]} 80. Kh6 {[%clk 0:07:30]} 80... Kf6 {[%clk
0:38:24]} 81. e4 {[%clk 0:07:20]} 81... Bd6 {[%clk 0:38:32]} 82. Be8 {[%clk
0:07:38]} 82... Be7 {[%clk 0:38:55]} 83. Kh5 {[%clk 0:07:55]} 83... Bd6 {[%clk
0:39:11]} 84. Kg4 {[%clk 0:07:56]} 84... Be7 {[%clk 0:39:29]} 85. Bd7 {[%clk
0:08:10]} 85... Ke5 {[%clk 0:39:48]} 86. Bc6 {[%clk 0:08:24]} 86... Bd8 {[%clk
0:39:58]} 87. Kf3 {[%clk 0:08:20]} 87... Kd4 {[%clk 0:40:14]} 88. Bb5 {[%clk
0:06:04]} 88... Be7 {[%clk 0:40:32]} 89. Ba4 {[%clk 0:06:12]} 89... Ke5 1/2-1/2

[Variant "Standard"]
[Site "Europe Echecs"]